[Event "*** SCC Grand Prix: Titled Tuesday Blitz"]
[Site "Chess.com"]
[Date "2020.09.29"]
[Round "5"]
[White "Julianos82"]
[Black "RamyresCoelho"]
[Result "1-0"]
[WhiteElo "2314"]
[BlackElo "2010"]
[TimeControl "180+1"]
[EndTime "10:53:16 PDT"]
[Termination "Julianos82 won by resignation"]

1. d4 {[%clk 0:03:00.9]} 1... Nf6 {[%clk 0:03:00]} 2. Nf3 {[%clk 0:03:00.1]}
2... g6 {[%clk 0:02:59]} 3. c4 {[%clk 0:02:59.6]} 3... Bg7 {[%clk 0:02:58.4]} 4.
Nc3 {[%clk 0:03:00.5]} 4... d5 {[%clk 0:02:58.9]} 5. cxd5 {[%clk 0:03:00.4]}
5... Nxd5 {[%clk 0:02:59.8]} 6. Na4 {[%clk 0:03:00.8]} 6... O-O {[%clk
0:02:58.5]} 7. Bg5 {[%clk 0:03:00]} 7... h6 {[%clk 0:02:57]} 8. Bh4 {[%clk
0:02:59.1]} 8... g5 {[%clk 0:02:57.4]} 9. Bg3 {[%clk 0:02:59.1]} 9... b6 {[%clk
0:02:54.1]} 10. e3 {[%clk 0:02:54]} 10... Ba6 {[%clk 0:02:52.3]} 11. Bd3 {[%clk
0:02:38.1]} 11... Nb4 {[%clk 0:02:46.8]} 12. Bxa6 {[%clk 0:02:32.2]} 12... N8xa6
{[%clk 0:02:47.7]} 13. h4 {[%clk 0:02:28.2]} 13... g4 {[%clk 0:02:43]} 14. Ne5
{[%clk 0:02:27.6]} 14... h5 {[%clk 0:02:36.9]} 15. a3 {[%clk 0:02:25.6]} 15...
Nd5 {[%clk 0:02:34.7]} 16. Rc1 {[%clk 0:02:24]} 16... Bxe5 {[%clk 0:02:20.5]}
17. Bxe5 {[%clk 0:02:24.9]} 17... f6 {[%clk 0:02:18.8]} 18. Bg3 {[%clk
0:02:17.1]} 18... Rc8 {[%clk 0:02:13.8]} 19. Qd3 {[%clk 0:02:14.7]} 19... f5
{[%clk 0:01:58.7]} 20. Qxa6 {[%clk 0:02:09.8]} 20... f4 {[%clk 0:01:58.8]} 21.
exf4 {[%clk 0:02:05.7]} 21... Nxf4 {[%clk 0:01:59.7]} 22. Bxf4 {[%clk
0:02:02.9]} 22... Rxf4 {[%clk 0:01:58.4]} 23. O-O {[%clk 0:01:59]} 23... Rxd4
{[%clk 0:01:53.6]} 24. Qb5 {[%clk 0:01:49.8]} 24... c5 {[%clk 0:01:51.4]} 25.
Rfe1 {[%clk 0:01:44.2]} 25... e5 {[%clk 0:01:49]} 26. Rxe5 {[%clk 0:01:36]}
26... Qxh4 {[%clk 0:01:49]} 27. Re8+ {[%clk 0:01:28.4]} 27... Rxe8 {[%clk
0:01:49.3]} 28. Qxe8+ {[%clk 0:01:29]} 28... Kg7 {[%clk 0:01:49.6]} 29. Re1
{[%clk 0:01:26.1]} 29... Qd8 {[%clk 0:01:22.1]} 30. Re7+ {[%clk 0:01:24]} 30...
Kh6 {[%clk 0:01:18.6]} 31. Re6+ {[%clk 0:01:19.2]} 31... Kg7 {[%clk 0:01:07.7]}
32. Qg6+ {[%clk 0:01:16.1]} 32... Kf8 {[%clk 0:01:04.2]} 33. Rf6+ {[%clk
0:01:15.2]} 33... Ke7 {[%clk 0:01:00.5]} 34. Rf7+ {[%clk 0:01:14.9]} 1-0

[Event "*** SCC Grand Prix: Titled Tuesday Blitz"]
[Site "Chess.com"]
[Date "2020.09.29"]
[Round "5"]
[White "tlomigtlis"]
[Black "MFBerna"]
[Result "1-0"]
[WhiteElo "2532"]
[BlackElo "2371"]
[TimeControl "180+1"]
[EndTime "10:53:21 PDT"]
[Termination "tlomigtlis won by resignation"]

1. d4 {[%clk 0:03:00.9]} 1... Nf6 {[%clk 0:02:59.3]} 2. c4 {[%clk 0:03:01.1]}
2... e6 {[%clk 0:02:59.5]} 3. Nc3 {[%clk 0:03:01.3]} 3... d5 {[%clk 0:02:59.7]}
4. cxd5 {[%clk 0:03:01]} 4... exd5 {[%clk 0:03:00.6]} 5. Bg5 {[%clk 0:03:00.9]}
5... c6 {[%clk 0:02:59.6]} 6. Qc2 {[%clk 0:02:58.1]} 6... g6 {[%clk 0:02:57.7]}
7. e3 {[%clk 0:02:55.7]} 7... Bf5 {[%clk 0:02:57.2]} 8. Qb3 {[%clk 0:02:55.6]}
8... b6 {[%clk 0:02:57.1]} 9. Nf3 {[%clk 0:02:55.3]} 9... Be7 {[%clk 0:02:53.9]}
10. Bh6 {[%clk 0:02:53.9]} 10... Ng4 {[%clk 0:02:51.8]} 11. Bg7 {[%clk
0:02:50.3]} 11... Rg8 {[%clk 0:02:51.5]} 12. Be5 {[%clk 0:02:50.3]} 12... Nxe5
{[%clk 0:02:47.1]} 13. Nxe5 {[%clk 0:02:51.2]} 13... f6 {[%clk 0:02:44.6]} 14.
Nf3 {[%clk 0:02:40.9]} 14... Nd7 {[%clk 0:02:43.7]} 15. e4 {[%clk 0:02:31.9]}
15... Be6 {[%clk 0:02:26.2]} 16. exd5 {[%clk 0:02:31.4]} 16... cxd5 {[%clk
0:02:27.1]} 17. Nxd5 {[%clk 0:02:31.8]} 17... Kf7 {[%clk 0:01:48.4]} 18. Bc4
{[%clk 0:02:29.5]} 18... Re8 {[%clk 0:01:38.1]} 19. Nxe7 {[%clk 0:02:22.4]}
19... Rxe7 {[%clk 0:01:16.6]} 20. O-O {[%clk 0:02:16.6]} 20... Bxc4 {[%clk
0:01:10.6]} 21. Qxc4+ {[%clk 0:02:17.5]} 21... Kg7 {[%clk 0:01:11.5]} 22. Rfe1
{[%clk 0:02:15.2]} 22... Nf8 {[%clk 0:00:54.4]} 23. Rxe7+ {[%clk 0:02:12.5]}
23... Qxe7 {[%clk 0:00:55.3]} 24. Re1 {[%clk 0:02:12.5]} 24... Qd7 {[%clk
0:00:53.4]} 25. d5 {[%clk 0:02:08.3]} 25... Rd8 {[%clk 0:00:53.3]} 26. g3 {[%clk
0:02:04.9]} 26... Qxd5 {[%clk 0:00:39.6]} 27. Re7+ {[%clk 0:02:03.6]} 27... Kg8
{[%clk 0:00:40.2]} 28. Qxd5+ {[%clk 0:01:44.3]} 28... Rxd5 {[%clk 0:00:41.1]}
29. Rxa7 {[%clk 0:01:44.8]} 29... Rb5 {[%clk 0:00:41.3]} 30. b3 {[%clk
0:01:44.3]} 30... Ne6 {[%clk 0:00:39.2]} 31. Re7 {[%clk 0:01:39.6]} 31... Nc5
{[%clk 0:00:34.8]} 32. Nd4 {[%clk 0:01:39.1]} 32... Ra5 {[%clk 0:00:33.7]} 33.
b4 {[%clk 0:01:38.7]} 33... Rxa2 {[%clk 0:00:27]} 34. bxc5 {[%clk 0:01:38.3]}
34... bxc5 {[%clk 0:00:27.9]} 35. Ne6 {[%clk 0:01:38]} 35... c4 {[%clk
0:00:27.6]} 36. Rg7+ {[%clk 0:01:36.7]} 36... Kh8 {[%clk 0:00:28]} 37. Rc7
{[%clk 0:01:37.6]} 37... h5 {[%clk 0:00:27.9]} 1-0

[Event "*** SCC Grand Prix: Titled Tuesday Blitz"]
[Site "Chess.com"]
[Date "2020.09.29"]
[Round "5"]
[White "Synctel"]
[Black "lelya96"]
[Result "0-1"]
[WhiteElo "1983"]
[BlackElo "2211"]
[TimeControl "180+1"]
[EndTime "10:53:21 PDT"]
[Termination "lelya96 won on time"]

1. e4 {[%clk 0:02:59.1]} 1... e5 {[%clk 0:02:57.2]} 2. Nf3 {[%clk 0:02:49.4]}
2... Nc6 {[%clk 0:02:56.7]} 3. d4 {[%clk 0:02:47.3]} 3... exd4 {[%clk
0:02:55.4]} 4. Nxd4 {[%clk 0:02:48.2]} 4... Qf6 {[%clk 0:02:55.6]} 5. Be3 {[%clk
0:02:23.4]} 5... d6 {[%clk 0:02:55]} 6. Be2 {[%clk 0:02:16.5]} 6... Qg6 {[%clk
0:02:50.1]} 7. O-O {[%clk 0:02:13.8]} 7... Nf6 {[%clk 0:02:47.4]} 8. Nc3 {[%clk
0:01:50.8]} 8... Be7 {[%clk 0:02:45.3]} 9. Ndb5 {[%clk 0:01:06.7]} 9... Bd8
{[%clk 0:02:37.2]} 10. Nd5 {[%clk 0:01:01.4]} 10... Nxd5 {[%clk 0:02:33.7]} 11.
exd5 {[%clk 0:01:01.7]} 11... Bh3 {[%clk 0:02:33.1]} 12. Bf3 {[%clk 0:00:59.5]}
12... Ne5 {[%clk 0:02:32.4]} 13. Bf4 {[%clk 0:00:57.7]} 13... Nxf3+ {[%clk
0:02:29.4]} 14. Qxf3 {[%clk 0:00:57.1]} 14... Bd7 {[%clk 0:02:21.8]} 15. Rfe1+
{[%clk 0:00:57]} 15... Kf8 {[%clk 0:02:21.3]} 16. Nd4 {[%clk 0:00:52.7]} 16...
Bf6 {[%clk 0:02:17.7]} 17. Rad1 {[%clk 0:00:42.9]} 17... Qg4 {[%clk 0:02:17.2]}
18. Qxg4 {[%clk 0:00:39.2]} 18... Bxg4 {[%clk 0:02:18.1]} 19. f3 {[%clk
0:00:38.8]} 19... Bd7 {[%clk 0:02:16.5]} 20. c4 {[%clk 0:00:30.8]} 20... g6
{[%clk 0:02:16.1]} 21. Bh6+ {[%clk 0:00:28]} 21... Bg7 {[%clk 0:02:13.5]} 22.
Bxg7+ {[%clk 0:00:28.1]} 22... Kxg7 {[%clk 0:02:14.4]} 23. Re7 {[%clk
0:00:27.6]} 23... Rad8 {[%clk 0:02:13]} 24. Rde1 {[%clk 0:00:25.2]} 24... Rhe8
{[%clk 0:02:11.3]} 25. Rxe8 {[%clk 0:00:18.3]} 25... Rxe8 {[%clk 0:02:11.3]} 26.
Rxe8 {[%clk 0:00:18.4]} 26... Bxe8 {[%clk 0:02:12.2]} 27. Kf2 {[%clk 0:00:18.3]}
27... Kf6 {[%clk 0:02:11.2]} 28. Ke3 {[%clk 0:00:18.5]} 28... g5 {[%clk
0:02:05.9]} 29. g3 {[%clk 0:00:17.9]} 29... Bd7 {[%clk 0:02:00.8]} 30. f4 {[%clk
0:00:17.6]} 30... h6 {[%clk 0:02:01]} 31. b3 {[%clk 0:00:11.5]} 31... c6 {[%clk
0:01:59.6]} 32. dxc6 {[%clk 0:00:03.9]} 32... bxc6 {[%clk 0:01:59.4]} 33. Ne2
{[%clk 0:00:02.9]} 33... Kf5 {[%clk 0:01:53.7]} 0-1

[Event "*** SCC Grand Prix: Titled Tuesday Blitz"]
[Site "Chess.com"]
[Date "2020.09.29"]
[Round "5"]
[White "RaphCamora"]
[Black "SilviusTiberius"]
[Result "0-1"]
[WhiteElo "2399"]
[BlackElo "2631"]
[TimeControl "180+1"]
[EndTime "10:53:26 PDT"]
[Termination "SilviusTiberius won by resignation"]

1. Nf3 {[%clk 0:03:00.9]} 1... Nf6 {[%clk 0:02:59.4]} 2. c4 {[%clk 0:03:00.2]}
2... g6 {[%clk 0:02:59.4]} 3. Nc3 {[%clk 0:02:59.4]} 3... Bg7 {[%clk 0:02:59.8]}
4. e4 {[%clk 0:02:58.4]} 4... d6 {[%clk 0:03:00.3]} 5. d4 {[%clk 0:02:57.8]}
5... O-O {[%clk 0:03:00.8]} 6. h3 {[%clk 0:02:57.7]} 6... e5 {[%clk 0:03:00.1]}
7. d5 {[%clk 0:02:54]} 7... a5 {[%clk 0:02:59.9]} 8. Be3 {[%clk 0:02:31.7]} 8...
Na6 {[%clk 0:02:59.6]} 9. Be2 {[%clk 0:02:30]} 9... Nd7 {[%clk 0:02:28.5]} 10.
g4 {[%clk 0:02:28.9]} 10... Nb6 {[%clk 0:02:28.9]} 11. Rg1 {[%clk 0:02:15.1]}
11... Bd7 {[%clk 0:02:24.9]} 12. h4 {[%clk 0:01:45.8]} 12... Kh8 {[%clk
0:02:15.7]} 13. g5 {[%clk 0:01:38.3]} 13... Nc5 {[%clk 0:01:57.2]} 14. Qc2
{[%clk 0:01:33]} 14... Kg8 {[%clk 0:01:52.2]} 15. h5 {[%clk 0:01:33.2]} 15...
Re8 {[%clk 0:01:35.9]} 16. O-O-O {[%clk 0:01:30.5]} 16... Nba4 {[%clk
0:01:33.8]} 17. hxg6 {[%clk 0:01:22.9]} 17... fxg6 {[%clk 0:01:29.8]} 18. Nd2
{[%clk 0:01:21.9]} 18... Nxc3 {[%clk 0:01:25.9]} 19. Qxc3 {[%clk 0:01:22.8]}
19... Rf8 {[%clk 0:01:25.3]} 20. Rh1 {[%clk 0:01:20.6]} 20... Rf4 {[%clk
0:01:25.3]} 21. Bxf4 {[%clk 0:01:10]} 21... exf4 {[%clk 0:01:26.2]} 22. Qc2
{[%clk 0:01:10.3]} 22... Qxg5 {[%clk 0:01:25.4]} 23. Nf3 {[%clk 0:01:10.1]}
23... Qe7 {[%clk 0:01:24.3]} 24. e5 {[%clk 0:00:49.2]} 24... dxe5 {[%clk
0:01:22.7]} 25. Rdg1 {[%clk 0:00:31.4]} 25... Bf5 {[%clk 0:01:18.9]} 26. Qd1
{[%clk 0:00:30.7]} 26... e4 {[%clk 0:01:16.3]} 27. Nd4 {[%clk 0:00:29.5]} 27...
Qe5 {[%clk 0:01:16.2]} 0-1

[Event "*** SCC Grand Prix: Titled Tuesday Blitz"]
[Site "Chess.com"]
[Date "2020.09.29"]
[Round "5"]
[White "Superfelix"]
[Black "RasSanti"]
[Result "1-0"]
[WhiteElo "2487"]
[BlackElo "2326"]
[TimeControl "180+1"]
[EndTime "10:53:32 PDT"]
[Termination "Superfelix won by checkmate"]

1. e4 {[%clk 0:03:00.9]} 1... c6 {[%clk 0:02:54.4]} 2. Nc3 {[%clk 0:03:00.7]}
2... d5 {[%clk 0:02:54.1]} 3. Qe2 {[%clk 0:03:01.1]} 3... dxe4 {[%clk
0:02:51.9]} 4. Nxe4 {[%clk 0:03:02]} 4... Bf5 {[%clk 0:02:49.4]} 5. d3 {[%clk
0:03:01.8]} 5... e6 {[%clk 0:02:46.3]} 6. Nf3 {[%clk 0:03:02]} 6... Nf6 {[%clk
0:02:43.3]} 7. g3 {[%clk 0:03:01.7]} 7... Nbd7 {[%clk 0:02:32.8]} 8. Bg2 {[%clk
0:03:01.4]} 8... Be7 {[%clk 0:02:28.4]} 9. O-O {[%clk 0:03:00.8]} 9... O-O
{[%clk 0:02:27.6]} 10. b3 {[%clk 0:03:01.1]} 10... Nc5 {[%clk 0:02:11.6]} 11.
Nxc5 {[%clk 0:02:57.6]} 11... Bxc5 {[%clk 0:02:12.5]} 12. Bb2 {[%clk 0:02:58.1]}
12... Re8 {[%clk 0:02:10]} 13. Rfe1 {[%clk 0:02:55.6]} 13... a5 {[%clk
0:02:01.9]} 14. Nh4 {[%clk 0:02:55.3]} 14... Bg4 {[%clk 0:01:56.8]} 15. Bxf6
{[%clk 0:02:51.4]} 15... Qxf6 {[%clk 0:01:50.7]} 16. Qxg4 {[%clk 0:02:51.3]}
16... Bxf2+ {[%clk 0:01:48.1]} 17. Kh1 {[%clk 0:02:48.4]} 17... Bxe1 {[%clk
0:01:47.6]} 18. Rxe1 {[%clk 0:02:49.3]} 18... Qb2 {[%clk 0:01:42.7]} 19. Qe2
{[%clk 0:02:38.8]} 19... Qxa2 {[%clk 0:01:39.9]} 20. Nf3 {[%clk 0:02:37.3]}
20... a4 {[%clk 0:01:36.5]} 21. bxa4 {[%clk 0:02:34.8]} 21... Qxa4 {[%clk
0:01:18.7]} 22. Ng5 {[%clk 0:02:34.2]} 22... h6 {[%clk 0:01:14.3]} 23. Ne4
{[%clk 0:02:33.6]} 23... Qd4 {[%clk 0:01:12.4]} 24. h4 {[%clk 0:02:27.6]} 24...
Red8 {[%clk 0:01:06.5]} 25. Rf1 {[%clk 0:02:26.5]} 25... Ra1 {[%clk 0:01:04]}
26. Rxa1 {[%clk 0:02:21.2]} 26... Qxa1+ {[%clk 0:01:04.9]} 27. Kh2 {[%clk
0:02:21.9]} 27... Qe5 {[%clk 0:01:02]} 28. Qf2 {[%clk 0:02:20]} 28... f5 {[%clk
0:00:52.1]} 29. Nd2 {[%clk 0:02:19.7]} 29... Qd4 {[%clk 0:00:47]} 30. Qe2 {[%clk
0:02:18.7]} 30... Re8 {[%clk 0:00:32.2]} 31. Qh5 {[%clk 0:02:12.7]} 31... Rf8
{[%clk 0:00:26.7]} 32. Nf3 {[%clk 0:02:08.4]} 32... Qd6 {[%clk 0:00:21.6]} 33.
Qg6 {[%clk 0:02:07.2]} 33... Rf6 {[%clk 0:00:16.9]} 34. Qe8+ {[%clk 0:02:07.1]}
34... Kh7 {[%clk 0:00:16.3]} 35. h5 {[%clk 0:02:05.5]} 35... f4 {[%clk
0:00:14.8]} 36. g4 {[%clk 0:02:04.1]} 36... Rf8 {[%clk 0:00:12]} 37. Qg6+ {[%clk
0:02:03.5]} 37... Kg8 {[%clk 0:00:10.5]} 38. g5 {[%clk 0:02:04.1]} 38... hxg5
{[%clk 0:00:03.6]} 39. h6 {[%clk 0:02:04.5]} 39... Rf5 {[%clk 0:00:03.7]} 40.
Qxg7# {[%clk 0:02:01.8]} 1-0

[Event "*** SCC Grand Prix: Titled Tuesday Blitz"]
[Site "Chess.com"]
[Date "2020.09.29"]
[Round "5"]
[White "blitzking1729"]
[Black "NotFischer"]
[Result "1-0"]
[WhiteElo "2548"]
[BlackElo "2292"]
[TimeControl "180+1"]
[EndTime "10:53:33 PDT"]
[Termination "blitzking1729 won by checkmate"]

1. d4 {[%clk 0:02:59.4]} 1... Nf6 {[%clk 0:02:59.5]} 2. Bg5 {[%clk 0:02:55.8]}
2... d5 {[%clk 0:02:59.7]} 3. Nd2 {[%clk 0:02:53.7]} 3... g6 {[%clk 0:02:59.7]}
4. Bxf6 {[%clk 0:02:52.7]} 4... exf6 {[%clk 0:03:00.6]} 5. e3 {[%clk 0:02:53.3]}
5... Bg7 {[%clk 0:03:00.9]} 6. g3 {[%clk 0:02:53.5]} 6... O-O {[%clk 0:03:01.8]}
7. Bg2 {[%clk 0:02:53.9]} 7... c6 {[%clk 0:03:02.7]} 8. Ne2 {[%clk 0:02:54.4]}
8... Re8 {[%clk 0:03:03.3]} 9. O-O {[%clk 0:02:55]} 9... Nd7 {[%clk 0:03:02]}
10. c4 {[%clk 0:02:55.3]} 10... Nb6 {[%clk 0:02:57.8]} 11. cxd5 {[%clk
0:02:46.5]} 11... cxd5 {[%clk 0:02:58.1]} 12. Rc1 {[%clk 0:02:43.8]} 12... Be6
{[%clk 0:02:54.7]} 13. Nf4 {[%clk 0:02:43.5]} 13... Qd7 {[%clk 0:02:51.5]} 14.
Nd3 {[%clk 0:02:41.8]} 14... Bh3 {[%clk 0:02:32.1]} 15. Nc5 {[%clk 0:02:39.8]}
15... Qf5 {[%clk 0:02:31.6]} 16. Qf3 {[%clk 0:02:33.5]} 16... Qxf3 {[%clk
0:02:30]} 17. Nxf3 {[%clk 0:02:34.4]} 17... Bxg2 {[%clk 0:02:30.9]} 18. Kxg2
{[%clk 0:02:34.8]} 18... Re7 {[%clk 0:02:29.5]} 19. Rc2 {[%clk 0:02:31.4]} 19...
h6 {[%clk 0:02:26.9]} 20. Rfc1 {[%clk 0:02:29.7]} 20... Rae8 {[%clk 0:02:23.1]}
21. Nd2 {[%clk 0:02:29.1]} 21... f5 {[%clk 0:02:22.6]} 22. a4 {[%clk 0:02:20.5]}
22... g5 {[%clk 0:02:17.8]} 23. a5 {[%clk 0:02:19.5]} 23... Nd7 {[%clk
0:02:18.3]} 24. Nxb7 {[%clk 0:02:19]} 24... f4 {[%clk 0:02:10.1]} 25. gxf4
{[%clk 0:02:12.1]} 25... gxf4 {[%clk 0:02:08.2]} 26. Nd6 {[%clk 0:02:12.2]}
26... Rb8 {[%clk 0:02:00.5]} 27. Rc8+ {[%clk 0:02:10.8]} 27... Rxc8 {[%clk
0:02:00.9]} 28. Rxc8+ {[%clk 0:02:06.9]} 28... Kh7 {[%clk 0:02:01.2]} 29. Rc7
{[%clk 0:02:04.9]} 29... fxe3 {[%clk 0:01:59.3]} 30. fxe3 {[%clk 0:02:04.6]}
30... Rxe3 {[%clk 0:01:58.9]} 31. Nf3 {[%clk 0:02:02.6]} 31... Re2+ {[%clk
0:01:57.4]} 32. Kf1 {[%clk 0:02:01.5]} 32... Re3 {[%clk 0:01:57.6]} 33. Kf2
{[%clk 0:02:00.4]} 33... Rb3 {[%clk 0:01:25.9]} 34. Rxd7 {[%clk 0:01:53.9]}
34... Rxb2+ {[%clk 0:01:26.4]} 35. Kg3 {[%clk 0:01:53]} 35... a6 {[%clk
0:01:08.7]} 36. Rxf7 {[%clk 0:01:41.3]} 36... Kg6 {[%clk 0:01:07.6]} 37. Ra7
{[%clk 0:01:40.1]} 37... Rb3 {[%clk 0:01:06.1]} 38. Rxa6 {[%clk 0:01:37.8]}
38... Kh5 {[%clk 0:01:00.3]} 39. Nf5 {[%clk 0:01:19.7]} 39... Bf8 {[%clk
0:01:00.6]} 40. Kf4 {[%clk 0:01:18.7]} 40... Ba3 {[%clk 0:00:56.9]} 41. Ng3#
{[%clk 0:01:17.8]} 1-0

[Event "*** SCC Grand Prix: Titled Tuesday Blitz"]
[Site "Chess.com"]
[Date "2020.09.29"]
[Round "5"]
[White "LogoCzar"]
[Black "Gabrielian_Artur"]
[Result "0-1"]
[WhiteElo "2422"]
[BlackElo "2734"]
[TimeControl "180+1"]
[EndTime "10:53:33 PDT"]
[Termination "Gabrielian_Artur won by resignation"]

1. e4 {[%clk 0:03:00.9]} 1... c5 {[%clk 0:02:59.1]} 2. Nf3 {[%clk 0:03:00.8]}
2... d6 {[%clk 0:02:59.1]} 3. d4 {[%clk 0:03:00.7]} 3... cxd4 {[%clk 0:02:59.4]}
4. Nxd4 {[%clk 0:03:01.4]} 4... Nf6 {[%clk 0:02:59.8]} 5. Nc3 {[%clk 0:03:01.5]}
5... Nc6 {[%clk 0:03:00.4]} 6. Bc4 {[%clk 0:03:01.2]} 6... Qb6 {[%clk
0:02:59.9]} 7. Nb3 {[%clk 0:03:01.2]} 7... e6 {[%clk 0:02:59.7]} 8. Bf4 {[%clk
0:03:00.9]} 8... Ne5 {[%clk 0:02:59]} 9. Be2 {[%clk 0:03:00.9]} 9... Be7 {[%clk
0:02:58.7]} 10. Qd2 {[%clk 0:03:00.9]} 10... O-O {[%clk 0:02:58.2]} 11. O-O-O
{[%clk 0:03:00.8]} 11... a6 {[%clk 0:02:58.5]} 12. g4 {[%clk 0:03:01]} 12... Qc7
{[%clk 0:02:55.2]} 13. g5 {[%clk 0:02:57.9]} 13... Nfd7 {[%clk 0:02:55.2]} 14.
Be3 {[%clk 0:02:53.9]} 14... b5 {[%clk 0:02:54.9]} 15. f4 {[%clk 0:02:51.8]}
15... Nc4 {[%clk 0:02:54.7]} 16. Bxc4 {[%clk 0:02:51.7]} 16... bxc4 {[%clk
0:02:55.6]} 17. Nd4 {[%clk 0:02:51]} 17... Rb8 {[%clk 0:02:55.6]} 18. Nf5 {[%clk
0:02:37.9]} 18... exf5 {[%clk 0:02:52.5]} 19. Nd5 {[%clk 0:02:36.7]} 19... Qd8
{[%clk 0:02:51.2]} 20. exf5 {[%clk 0:02:36.5]} 20... Bb7 {[%clk 0:02:44.7]} 21.
f6 {[%clk 0:02:35.4]} 21... Bxd5 {[%clk 0:02:44.6]} 22. fxe7 {[%clk 0:02:34.2]}
22... Qxe7 {[%clk 0:02:44.5]} 23. Rhe1 {[%clk 0:02:32.2]} 23... Be4 {[%clk
0:02:29.6]} 24. Qxd6 {[%clk 0:02:26]} 24... Qxd6 {[%clk 0:02:29.6]} 25. Rxd6
{[%clk 0:02:25.6]} 25... Bf5 {[%clk 0:02:29.8]} 26. Bd4 {[%clk 0:02:18.8]} 26...
f6 {[%clk 0:01:53.1]} 27. gxf6 {[%clk 0:02:09.5]} 27... Nxf6 {[%clk 0:01:52.8]}
28. Re7 {[%clk 0:01:55.8]} 28... Rf7 {[%clk 0:01:48.6]} 29. Bxf6 {[%clk
0:01:38.6]} 29... Rxf6 {[%clk 0:01:41.7]} 30. Rd5 {[%clk 0:01:29.4]} 30... Bg6
{[%clk 0:01:33.3]} 31. Rdd7 {[%clk 0:01:20.3]} 31... Rxf4 {[%clk 0:01:32.3]} 32.
Rxg7+ {[%clk 0:01:19.4]} 32... Kf8 {[%clk 0:01:25.3]} 33. Ra7 {[%clk 0:01:15.9]}
33... Rh4 {[%clk 0:01:18]} 34. Rgc7 {[%clk 0:01:11.7]} 34... Rd8 {[%clk
0:01:07.9]} 35. Rxa6 {[%clk 0:01:03.8]} 35... Rxh2 {[%clk 0:01:05.8]} 0-1

[Event "*** SCC Grand Prix: Titled Tuesday Blitz"]
[Site "Chess.com"]
[Date "2020.09.29"]
[Round "5"]
[White "bazar-wokzal"]
[Black "AndrewMaco"]
[Result "1-0"]
[WhiteElo "2475"]
[BlackElo "2647"]
[TimeControl "180+1"]
[EndTime "10:53:35 PDT"]
[Termination "bazar-wokzal won on time"]

1. e4 {[%clk 0:03:00.9]} 1... c6 {[%clk 0:02:56.1]} 2. d4 {[%clk 0:02:59.5]}
2... d5 {[%clk 0:02:57]} 3. e5 {[%clk 0:02:56.1]} 3... Bf5 {[%clk 0:02:55]} 4.
Nc3 {[%clk 0:02:55.9]} 4... e6 {[%clk 0:02:41.4]} 5. g4 {[%clk 0:02:55.8]} 5...
Bg6 {[%clk 0:02:41.4]} 6. Nge2 {[%clk 0:02:55.6]} 6... f6 {[%clk 0:02:40]} 7.
Nf4 {[%clk 0:02:55.3]} 7... fxe5 {[%clk 0:02:34.3]} 8. dxe5 {[%clk 0:02:54.2]}
8... Nd7 {[%clk 0:02:05.8]} 9. Nxe6 {[%clk 0:02:40.6]} 9... Qe7 {[%clk
0:02:03.8]} 10. Nc7+ {[%clk 0:02:39.7]} 10... Kd8 {[%clk 0:02:04.2]} 11. Nxa8
{[%clk 0:02:38.4]} 11... Nxe5 {[%clk 0:02:04.6]} 12. Be3 {[%clk 0:02:36.2]}
12... Nf6 {[%clk 0:02:00.2]} 13. Be2 {[%clk 0:02:30.5]} 13... h5 {[%clk
0:01:53.5]} 14. Qd4 {[%clk 0:02:16]} 14... c5 {[%clk 0:01:45.5]} 15. Qa4 {[%clk
0:02:07.5]} 15... d4 {[%clk 0:01:45.8]} 16. O-O-O {[%clk 0:02:06.6]} 16... hxg4
{[%clk 0:01:41.3]} 17. Bg5 {[%clk 0:01:48.3]} 17... Kc8 {[%clk 0:01:38.2]} 18.
Nb5 {[%clk 0:01:40.4]} 18... Nc6 {[%clk 0:01:38.2]} 19. Nxa7+ {[%clk 0:01:39.2]}
19... Nxa7 {[%clk 0:01:37.8]} 20. Nb6+ {[%clk 0:01:18.5]} 20... Kb8 {[%clk
0:01:29.8]} 21. Bf4+ {[%clk 0:01:16.3]} 1-0

[Event "*** SCC Grand Prix: Titled Tuesday Blitz"]
[Site "Chess.com"]
[Date "2020.09.29"]
[Round "5"]
[White "RaunakSadhwani2005"]
[Black "francyIM"]
[Result "1-0"]
[WhiteElo "2936"]
[BlackElo "2759"]
[TimeControl "180+1"]
[EndTime "10:53:36 PDT"]
[Termination "RaunakSadhwani2005 won by resignation"]

1. Nf3 {[%clk 0:02:57.8]} 1... c5 {[%clk 0:02:58.3]} 2. b3 {[%clk 0:02:55]} 2...
Nc6 {[%clk 0:02:53.4]} 3. Bb2 {[%clk 0:02:54.6]} 3... d6 {[%clk 0:02:53]} 4. e3
{[%clk 0:02:53.9]} 4... Nf6 {[%clk 0:02:49.7]} 5. h3 {[%clk 0:02:52.9]} 5... g6
{[%clk 0:02:46.9]} 6. Bxf6 {[%clk 0:02:46.1]} 6... exf6 {[%clk 0:02:47.8]} 7. c4
{[%clk 0:02:47]} 7... d5 {[%clk 0:02:46.3]} 8. cxd5 {[%clk 0:02:42.9]} 8... Qxd5
{[%clk 0:02:47.2]} 9. Nc3 {[%clk 0:02:43.1]} 9... Qd7 {[%clk 0:02:46.7]} 10. Rc1
{[%clk 0:02:32.5]} 10... f5 {[%clk 0:02:44.7]} 11. Bb5 {[%clk 0:02:29.4]} 11...
a6 {[%clk 0:02:42.3]} 12. Ne5 {[%clk 0:02:27.8]} 12... Qd6 {[%clk 0:02:38.4]}
13. Bxc6+ {[%clk 0:02:06.5]} 13... bxc6 {[%clk 0:02:36.2]} 14. Qf3 {[%clk
0:02:02]} 14... Bb7 {[%clk 0:02:28.7]} 15. Nc4 {[%clk 0:01:59.5]} 15... Qc7
{[%clk 0:02:23.8]} 16. O-O {[%clk 0:01:59]} 16... Bg7 {[%clk 0:02:22.6]} 17. Na4
{[%clk 0:01:59]} 17... Qe7 {[%clk 0:02:20.1]} 18. Na5 {[%clk 0:01:57.7]} 18...
O-O {[%clk 0:02:16.1]} 19. Nxc5 {[%clk 0:01:54.1]} 19... Bc8 {[%clk 0:02:07.7]}
20. Nxc6 {[%clk 0:01:54.2]} 20... Qd6 {[%clk 0:02:05.3]} 21. Ne7+ {[%clk
0:01:53.1]} 21... Qxe7 {[%clk 0:02:05.5]} 22. Qxa8 {[%clk 0:01:53.7]} 22... f4
{[%clk 0:02:06.4]} 23. Qe4 {[%clk 0:01:49.5]} 23... Qd6 {[%clk 0:02:04.5]} 24.
Qxf4 {[%clk 0:01:40.9]} 24... Qxd2 {[%clk 0:02:03.3]} 25. a4 {[%clk 0:01:23.2]}
25... Re8 {[%clk 0:02:02.3]} 26. Rfd1 {[%clk 0:01:21]} 26... Qb2 {[%clk
0:02:02]} 27. Qc4 {[%clk 0:01:10.8]} 27... Rf8 {[%clk 0:01:55.5]} 28. Rc2 {[%clk
0:01:04.9]} 28... Qa3 {[%clk 0:01:54.7]} 29. Nd7 {[%clk 0:00:59.6]} 29... Re8
{[%clk 0:01:49]} 30. Qxc8 {[%clk 0:00:55.7]} 30... Rxc8 {[%clk 0:01:48.6]} 31.
Rxc8+ {[%clk 0:00:56.6]} 31... Bf8 {[%clk 0:01:49.5]} 32. Rxf8+ {[%clk
0:00:51.6]} 32... Kg7 {[%clk 0:01:49.6]} 33. Rb8 {[%clk 0:00:50.5]} 33... Qb2
{[%clk 0:01:49.3]} 34. g3 {[%clk 0:00:48.7]} 34... h5 {[%clk 0:01:41.2]} 35. h4
{[%clk 0:00:48.1]} 35... g5 {[%clk 0:01:40.8]} 36. hxg5 {[%clk 0:00:45]} 36...
h4 {[%clk 0:01:40.9]} 37. gxh4 {[%clk 0:00:45.1]} 37... Qe2 {[%clk 0:01:40]} 38.
Rd4 {[%clk 0:00:44.3]} 38... a5 {[%clk 0:01:37.7]} 39. Nf6 {[%clk 0:00:42]}
39... Kg6 {[%clk 0:01:37.4]} 40. Rf4 {[%clk 0:00:40.4]} 40... Qd1+ {[%clk
0:01:33.2]} 41. Kh2 {[%clk 0:00:40.1]} 1-0